[Event "ONJK DE"]
[Site "Enschede, Netherlands"]
[Date "2022.08.08"]
[Round "1.1"]
[White "Van Haaften, Jelle"]
[Black "Terlouw, Wouter"]
[Result "1-0"]
[TimeControl "40min + 30sec/move"]
[WhiteElo "992"]
[BlackElo "1720"]

1. c4 {[%clk 00:40:59]} e5 {[%clk 00:40:50]} {[%emt 00:00:09]} 2. Nc3 {[%clk
00:41:25]} {[%emt 00:00:05]} Nf6 {[%clk 00:41:08]} {[%emt 00:00:12]} 3. g3
{[%clk 00:41:49]} {[%emt 00:00:06]} d5 {[%clk 00:41:27]} {[%emt 00:00:10]} 4.
cxd5 {[%clk 00:42:13]} {[%emt 00:00:07]} Nxd5 {[%clk 00:41:47]} {[%emt
00:00:11]} 5. Bg2 {[%clk 00:42:36]} {[%emt 00:00:06]} Nb6 {[%clk 00:41:56]}
{[%emt 00:00:21]} 6. d3 {[%clk 00:42:55]} {[%emt 00:00:11]} Nc6 {[%clk
00:41:48]} {[%emt 00:00:38]} 7. Bxc6+ {[%clk 00:43:14]} {[%emt 00:00:11]} bxc6
{[%clk 00:42:11]} {[%emt 00:00:07]} 8. Nf3 {[%clk 00:43:38]} {[%emt 00:00:06]}
Bd6 {[%clk 00:41:58]} {[%emt 00:00:35]} 9. O-O {[%clk 00:43:53]} {[%emt
00:00:23]} Bh3 {[%clk 00:41:20]} {[%emt 00:01:07]} 10. Re1 {[%clk 00:44:15]}
{[%emt 00:00:10]} O-O {[%clk 00:40:45]} {[%emt 00:01:04]} 11. e4 {[%clk
00:44:18]} {[%emt 00:00:27]} f5 {[%clk 00:39:21]} {[%emt 00:01:46]} 12. Ng5
{[%clk 00:43:06]} {[%emt 00:01:51]} Bg4 {[%clk 00:39:30]} {[%emt 00:00:21]} 13.
Qb3+ {[%clk 00:42:50]} {[%emt 00:00:46]} Kh8 {[%clk 00:39:44]} {[%emt
00:00:15]} 14. Nf7+ {[%clk 00:42:30]} {[%emt 00:00:51]} Rxf7 {[%clk 00:40:04]}
{[%emt 00:00:10]} 15. Qxf7 {[%clk 00:42:50]} {[%emt 00:00:07]} Bc5 {[%clk
00:35:49]} {[%emt 00:04:47]} 16. Be3 {[%clk 00:39:42]} {[%emt 00:03:39]} Nd7
{[%clk 00:34:12]} {[%emt 00:02:04]} 17. Kg2 {[%clk 00:37:46]} {[%emt 00:02:28]}
Bxe3 {[%clk 00:32:18]} {[%emt 00:02:24]} 18. fxe3 {[%emt 00:02:47]} Rb8 {[%clk
00:30:14]} {[%emt 00:02:21]} 19. b3 {[%clk 00:34:53]} {[%emt 00:01:20]} Nf6
{[%clk 00:27:57]} {[%emt 00:02:42]} 20. Qc4 {[%clk 00:32:37]} {[%emt 00:02:51]}
fxe4 {[%clk 00:21:34]} {[%emt 00:06:51]} 21. Nxe4 {[%clk 00:31:59]} {[%emt
00:01:09]} Qd7 {[%clk 00:16:59]} {[%emt 00:04:54]} 22. Nxf6 {[%clk 00:29:34]}
{[%emt 00:03:06]} Bh3+ {[%clk 00:16:10]} {[%emt 00:01:19]} 23. Kg1 {[%clk
00:29:08]} {[%emt 00:00:56]} gxf6 {[%clk 00:16:12]} {[%emt 00:00:24]} 24. Rac1
{[%clk 00:27:08]} {[%emt 00:02:35]} Rb6 {[%clk 00:13:31]} {[%emt 00:03:08]} 25.
d4 {[%clk 00:26:34]} {[%emt 00:01:06]} Qf5 {[%clk 00:08:59]} {[%emt 00:04:50]}
26. Rc2 {[%clk 00:24:58]} {[%emt 00:02:19]} Qe6 {[%clk 00:06:16]} {[%emt
00:03:12]} 27. Qxe6 {[%clk 00:24:16]} {[%emt 00:01:12]} Bxe6 {[%clk 00:06:39]}
{[%emt 00:00:07]} 28. Rec1 {[%clk 00:24:36]} {[%emt 00:00:10]} Bd5 {[%clk
00:06:46]} {[%emt 00:00:22]} 29. Rf2 {[%clk 00:24:50]} {[%emt 00:00:17]} Kg7
{[%clk 00:05:46]} {[%emt 00:01:30]} 30. Rcf1 {[%clk 00:24:44]} {[%emt
00:00:37]} exd4 {[%clk 00:05:12]} {[%emt 00:01:03]} 31. exd4 {[%clk 00:24:47]}
{[%emt 00:01:20]} Ra6 {[%clk 00:05:34]} {[%emt 00:00:10]} 32. h4 {[%clk
00:23:43]} {[%emt 00:01:33]} h5 {[%clk 00:04:50]} {[%emt 00:01:10]} 33. Re1
{[%clk 00:23:46]} {[%emt 00:00:30]} Kf7 {[%clk 00:04:25]} {[%emt 00:00:54]} 34.
Re5 {[%clk 00:23:00]} {[%emt 00:01:18]} Kg6 {[%clk 00:04:24]} {[%emt 00:00:27]}
35. Re7 {[%clk 00:22:45]} {[%emt 00:00:49]} Rb6 {[%clk 00:03:43]} {[%emt
00:01:11]} 36. Rxc7 {[%clk 00:22:36]} {[%emt 00:00:39]} a5 {[%clk 00:03:01]}
{[%emt 00:01:12]} 37. Rd7 {[%clk 00:20:38]} {[%emt 00:02:28]} a4 {[%clk
00:02:34]} {[%emt 00:00:56]} 38. Rd6 {[%clk 00:18:45]} {[%emt 00:02:24]} axb3
{[%clk 00:02:29]} {[%emt 00:00:35]} 39. axb3 {[%clk 00:17:48]} {[%emt
00:01:27]} Rxb3 {[%clk 00:02:42]} {[%emt 00:00:17]} 40. Rfxf6+ {[%clk
00:17:34]} {[%emt 00:00:44]} Kg7 {[%clk 00:02:58]} {[%emt 00:00:10]} 41. Rg6+
{[%clk 00:15:59]} {[%emt 00:02:09]} Kf7 {[%clk 00:03:03]} {[%emt 00:00:21]} 42.
Rdf6+ {[%clk 00:15:58]} {[%emt 00:00:35]} Ke7 {[%clk 00:03:20]} {[%emt
00:00:11]} 43. Rf1 {[%clk 00:15:45]} {[%emt 00:00:45]} Rb2 {[%clk 00:01:50]}
{[%emt 00:01:50]} 44. Re1+ {[%clk 00:15:17]} {[%emt 00:01:09]} Kf7 {[%clk
00:02:09]} {[%emt 00:00:08]} 45. Rg5 {[%clk 00:15:39]} {[%emt 00:00:10]} Rg2+
{[%clk 00:01:41]} {[%emt 00:00:58]} 46. Kf1 {[%clk 00:16:00]} {[%emt 00:00:09]}
Rd2 {[%clk 00:01:46]} {[%emt 00:00:21]} 47. Rxh5 {[%clk 00:15:25]} {[%emt
00:01:09]} Rxd4 {[%clk 00:01:49]} {[%emt 00:00:27]} 48. Kf2 {[%clk 00:15:05]}
{[%emt 00:00:49]} Rg4 {[%clk 00:01:27]} {[%emt 00:00:51]} 49. Ree5 {[%clk
00:14:46]} {[%emt 00:00:51]} Ra4 {[%clk 00:01:27]} {[%emt 00:00:30]} 50. Rxd5
{[%clk 00:14:51]} {[%emt 00:00:25]} cxd5 {[%clk 00:01:40]} {[%emt 00:00:17]} 51.
Rxd5 {[%clk 00:15:07]} {[%emt 00:00:14]} Kg6 {[%clk 00:02:01]} {[%emt
00:00:09]} 52. Kg2 {[%clk 00:15:20]} {[%emt 00:00:17]} Ra2+ {[%clk 00:02:15]}
{[%emt 00:00:16]} 53. Kh3 {[%clk 00:15:35]} {[%emt 00:00:15]} Ra3 {[%clk
00:02:36]} {[%emt 00:00:09]} 54. h5+ {[%clk 00:15:51]} {[%emt 00:00:15]} Kg7
{[%clk 00:02:14]} {[%emt 00:00:51]} 55. Kh4 {[%emt 00:00:41]} Kh6 {[%clk
00:02:13]} {[%emt 00:00:30]} 56. Rd6+ {[%clk 00:15:57]} {[%emt 00:00:14]} Kh7
{[%clk 00:02:25]} {[%emt 00:00:12]} 57. g4 {[%clk 00:16:21]} {[%emt 00:00:11]}
Ra5 {[%clk 00:02:23]} {[%emt 00:00:33]} 58. h6 {[%clk 00:16:23]} {[%emt
00:00:29]} Ra7 {[%clk 00:02:26]} {[%emt 00:00:26]} 59. Kh5 {[%clk 00:16:37]}
{[%emt 00:00:16]} Kh8 {[%clk 00:02:21]} {[%emt 00:00:33]} 60. g5 {[%clk
00:16:47]} {[%emt 00:00:22]} Ra8 {[%clk 00:02:24]} {[%emt 00:00:27]} 61. Kg6
{[%clk 00:16:49]} {[%emt 00:00:28]} Rg8+ {[%clk 00:02:04]} {[%emt 00:00:50]} 62.
Kh5 {[%clk 00:17:06]} {[%emt 00:00:12]} Ra8 {[%clk 00:02:28]} {[%emt 00:00:07]}
63. Rd7 {[%clk 00:17:22]} {[%emt 00:00:15]} Rb8 {[%clk 00:02:39]} {[%emt
00:00:16]} 64. Rd5 {[%clk 00:17:29]} {[%emt 00:00:26]} Ra8 {[%clk 00:02:59]}
{[%emt 00:00:09]} 65. g6 {[%clk 00:17:50]} {[%emt 00:00:09]} Rb8 {[%clk
00:03:08]} {[%emt 00:00:14]} 66. h7 {[%clk 00:18:05]} {[%emt 00:00:21]} Kg7
{[%clk 00:03:04]} {[%emt 00:00:34]} 67. Rd7+ {[%clk 00:18:18]} {[%emt
00:00:17]} Kf6 {[%clk 00:03:17]} {[%emt 00:00:17]} 68. Kh6 {[%clk 00:17:43]}
{[%emt 00:01:05]} Ra8 {[%clk 00:02:08]} {[%emt 00:01:39]} 69. Rf7+ {[%clk
00:17:55]} {[%emt 00:00:18]} 1-0

[Event "ONJK DE"]
[Site "Enschede, Netherlands"]
[Date "2022.08.08"]
[Round "1.2"]
[White "Groenewoud, Joel"]
[Black "Burger, Dominick"]
[Result "1-0"]
[TimeControl "40min + 30sec/move"]
[WhiteElo "1497"]
[BlackElo "955"]

1. e4 {[%clk 00:40:59]} {[%emt 00:00:01]} c5 {[%clk 00:40:53]} {[%emt
00:00:07]} 2. Nf3 {[%clk 00:41:24]} {[%emt 00:00:05]} e6 {[%clk 00:41:04]}
{[%emt 00:00:20]} 3. d4 {[%clk 00:41:50]} {[%emt 00:00:04]} cxd4 {[%clk
00:41:29]} {[%emt 00:00:04]} 4. Nxd4 {[%clk 00:42:18]} {[%emt 00:00:02]} Bc5
{[%emt 00:00:38]} 5. Nb3 {[%clk 00:42:25]} {[%emt 00:00:21]} b6 {[%clk
00:40:15]} {[%emt 00:01:38]} 6. Nxc5 {[%clk 00:42:32]} {[%emt 00:00:23]} bxc5
{[%clk 00:40:39]} {[%emt 00:00:06]} 7. c4 {[%clk 00:42:52]} {[%emt 00:00:10]}
Ne7 {[%clk 00:40:59]} {[%emt 00:00:10]} 8. Nc3 {[%clk 00:43:13]} {[%emt
00:00:08]} O-O {[%clk 00:41:14]} {[%emt 00:00:15]} 9. Be2 {[%clk 00:43:22]}
{[%emt 00:00:22]} Bb7 {[%clk 00:41:18]} {[%emt 00:00:26]} 10. O-O {[%clk
00:43:43]} {[%emt 00:00:09]} f5 {[%clk 00:41:13]} {[%emt 00:00:35]} 11. e5
{[%clk 00:43:50]} {[%emt 00:00:23]} Nbc6 {[%emt 00:00:23]} 12. f4 {[%clk
00:44:12]} {[%emt 00:00:07]} Qe8 {[%clk 00:39:48]} {[%emt 00:02:03]} 13. Nb5
{[%clk 00:44:24]} {[%emt 00:00:18]} Nd4 {[%clk 00:37:22]} {[%emt 00:02:56]} 14.
Nxd4 {[%clk 00:42:28]} {[%emt 00:02:26]} cxd4 {[%clk 00:37:32]} {[%emt
00:00:20]} 15. Qxd4 {[%clk 00:42:39]} {[%emt 00:00:18]} Nc6 {[%clk 00:37:38]}
{[%emt 00:00:24]} 16. Qd6 {[%clk 00:42:09]} {[%emt 00:01:00]} Rb8 {[%clk
00:35:48]} {[%emt 00:02:20]} 17. Bf3 {[%clk 00:41:56]} {[%emt 00:00:44]} Qf7
{[%clk 00:32:28]} {[%emt 00:03:50]} 18. b3 {[%clk 00:41:47]} {[%emt 00:00:39]}
Rfd8 {[%clk 00:32:39]} {[%emt 00:00:18]} 19. Rd1 {[%clk 00:41:46]} {[%emt
00:00:32]} h6 {[%clk 00:32:02]} {[%emt 00:01:06]} 20. Be3 {[%clk 00:41:47]}
{[%emt 00:00:29]} Ra8 {[%clk 00:30:26]} {[%emt 00:02:07]} 21. Rd2 {[%clk
00:40:24]} {[%emt 00:01:52]} Qe8 {[%clk 00:29:56]} {[%emt 00:00:59]} 22. Rad1
{[%clk 00:40:32]} {[%emt 00:00:23]} Kh7 {[%clk 00:27:38]} {[%emt 00:02:48]} 23.
Qc7 {[%clk 00:40:16]} {[%emt 00:00:46]} Rab8 {[%clk 00:25:22]} {[%emt
00:02:46]} 24. Rxd7 {[%clk 00:39:59]} {[%emt 00:00:47]} Rxd7 {[%clk 00:25:22]}
{[%emt 00:00:31]} 25. Rxd7 {[%clk 00:40:08]} {[%emt 00:00:20]} Qg8 {[%clk
00:23:25]} {[%emt 00:02:26]} 26. Bxc6 {[%clk 00:39:47]} {[%emt 00:00:52]} Bxc6
{[%clk 00:23:46]} {[%emt 00:00:10]} 27. Qxc6 {[%clk 00:40:10]} {[%emt
00:00:06]} 1-0

[Event "ONJK DE"]
[Site "Enschede, Netherlands"]
[Date "2022.08.08"]
[Round "1.3"]
[White "Okita, Shinsaku"]
[Black "Klein Tuente, Sam"]
[Result "1/2-1/2"]
[TimeControl "40min + 30sec/move"]
[WhiteElo "938"]
[BlackElo "1383"]

1. e4 {[%clk 00:40:52]} {[%emt 00:00:07]} e6 {[%clk 00:40:46]} {[%emt
00:00:14]} 2. d4 {[%clk 00:40:35]} {[%emt 00:00:48]} d5 {[%clk 00:41:12]}
{[%emt 00:00:04]} 3. exd5 {[%clk 00:40:20]} {[%emt 00:00:45]} exd5 {[%clk
00:41:37]} {[%emt 00:00:06]} 4. Nc3 {[%clk 00:40:29]} {[%emt 00:00:20]} Nf6
{[%clk 00:41:34]} {[%emt 00:00:32]} 5. Nf3 {[%clk 00:40:29]} {[%emt 00:00:31]}
c5 {[%clk 00:40:31]} {[%emt 00:01:33]} 6. Bb5+ {[%clk 00:40:17]} {[%emt
00:00:41]} Bd7 {[%clk 00:40:24]} {[%emt 00:00:38]} 7. O-O {[%clk 00:39:55]}
{[%emt 00:00:52]} Be7 {[%clk 00:40:09]} {[%emt 00:00:44]} 8. Bf4 {[%clk
00:39:55]} {[%emt 00:00:31]} O-O {[%clk 00:39:56]} {[%emt 00:00:43]} 9. Bxd7
{[%clk 00:39:45]} {[%emt 00:00:39]} Nbxd7 {[%clk 00:40:00]} {[%emt 00:00:27]}
10. Be5 {[%clk 00:39:29]} {[%emt 00:00:46]} Nxe5 11. dxe5 {[%clk 00:39:46]} Nd7
{[%clk 00:37:57]} {[%emt 00:01:09]} 12. Nxd5 {[%clk 00:39:51]} {[%emt
00:00:24]} Nb6 {[%clk 00:37:44]} {[%emt 00:00:43]} 13. Nxe7+ {[%clk 00:38:57]}
{[%emt 00:01:24]} Qxe7 {[%clk 00:38:02]} {[%emt 00:00:13]} 14. Qe2 {[%clk
00:38:33]} {[%emt 00:00:54]} Rfe8 {[%clk 00:38:04]} {[%emt 00:00:27]} 15. Rfe1
{[%clk 00:38:04]} {[%emt 00:01:00]} Nd7 {[%clk 00:37:24]} {[%emt 00:01:08]} 16.
Qb5 {[%clk 00:37:44]} {[%emt 00:00:51]} b6 {[%clk 00:35:32]} {[%emt 00:02:23]}
17. Rad1 {[%clk 00:35:59]} {[%emt 00:02:15]} Rad8 {[%clk 00:34:48]} {[%emt
00:01:13]} 18. h3 {[%clk 00:36:08]} {[%emt 00:00:22]} h6 {[%clk 00:29:58]}
{[%emt 00:05:20]} 19. Qa4 {[%clk 00:36:23]} {[%emt 00:00:15]} Nf8 {[%clk
00:29:10]} {[%emt 00:01:18]} 20. c3 {[%clk 00:35:59]} {[%emt 00:00:54]} Ng6
{[%clk 00:29:07]} {[%emt 00:00:33]} 21. Kh1 {[%clk 00:33:17]} {[%emt 00:03:13]}
Rxd1 {[%clk 00:27:19]} {[%emt 00:02:17]} 22. Qxd1 {[%clk 00:33:32]} {[%emt
00:00:14]} Nh4 {[%clk 00:25:14]} {[%emt 00:02:36]} 23. Nxh4 {[%clk 00:32:49]}
{[%emt 00:01:13]} Qxh4 {[%clk 00:25:31]} {[%emt 00:00:13]} 24. Kg1 {[%clk
00:33:13]} {[%emt 00:00:06]} Rd8 {[%clk 00:24:17]} {[%emt 00:01:44]} 25. Qe2
{[%clk 00:32:40]} {[%emt 00:01:03]} Qf4 {[%clk 00:21:56]} {[%emt 00:02:50]} 26.
e6 {[%clk 00:30:47]} {[%emt 00:02:23]} fxe6 {[%clk 00:20:47]} {[%emt 00:01:40]}
27. Qxe6+ {[%clk 00:31:13]} {[%emt 00:00:04]} Kh8 {[%clk 00:20:22]} {[%emt
00:00:54]} 28. Qe7 {[%clk 00:30:50]} {[%emt 00:00:54]} Rf8 {[%clk 00:19:12]}
{[%emt 00:01:40]} 29. Re2 {[%clk 00:29:38]} {[%emt 00:01:42]} Rf7 {[%clk
00:18:44]} {[%emt 00:00:58]} 30. Qe8+ {[%clk 00:29:52]} {[%emt 00:00:16]} Rf8
{[%clk 00:18:51]} {[%emt 00:00:23]} 31. Qe7 {[%clk 00:30:11]} {[%emt 00:00:11]}
Rf7 {[%clk 00:17:51]} {[%emt 00:01:30]} 32. Qe8+ {[%clk 00:30:30]} {[%emt
00:00:11]} Rf8 {[%clk 00:16:21]} {[%emt 00:02:00]} 33. Qe7 {[%clk 00:30:28]}
{[%emt 00:00:02]} 1/2-1/2

[Event "ONJK DE"]
[Site "Enschede, Netherlands"]
[Date "2022.08.08"]
[Round "1.4"]
[White "Declerck, Adriaan"]
[Black "Ruzaykyn, Olga"]
[Result "1-0"]
[TimeControl "40min + 30sec/move"]
[WhiteElo "1371"]
[BlackElo "930"]

1. e4 {[%clk 00:40:51]} {[%emt 00:00:08]} c6 {[%clk 00:41:00]} {[%emt
00:00:02]} 2. d4 {[%clk 00:41:13]} {[%emt 00:00:07]} d5 {[%clk 00:41:29]} 3. e5
{[%clk 00:41:37]} {[%emt 00:00:07]} Bf5 {[%clk 00:41:53]} {[%emt 00:00:05]} 4.
h4 {[%clk 00:42:03]} {[%emt 00:00:04]} h5 {[%clk 00:42:08]} {[%emt 00:00:16]} 5.
Be2 {[%clk 00:42:22]} {[%emt 00:00:10]} e6 {[%clk 00:41:57]} {[%emt 00:00:41]}
6. Nf3 {[%clk 00:42:36]} {[%emt 00:00:16]} Bg4 {[%clk 00:41:39]} {[%emt
00:00:48]} 7. Nbd2 {[%clk 00:42:46]} {[%emt 00:00:21]} Nd7 {[%clk 00:41:36]}
{[%emt 00:00:33]} 8. c3 {[%clk 00:42:31]} {[%emt 00:00:45]} Ne7 {[%clk
00:41:19]} {[%emt 00:00:47]} 9. Ng5 {[%clk 00:42:24]} {[%emt 00:00:36]} Bxe2
{[%clk 00:41:32]} {[%emt 00:00:17]} 10. Qxe2 {[%clk 00:42:48]} {[%emt
00:00:06]} Nf5 {[%clk 00:41:36]} {[%emt 00:00:26]} 11. Ndf3 {[%clk 00:42:49]}
{[%emt 00:00:29]} c5 {[%clk 00:40:47]} {[%emt 00:01:20]} 12. a3 {[%clk
00:41:34]} {[%emt 00:01:45]} Qb6 {[%clk 00:40:30]} {[%emt 00:00:46]} 13. Be3
{[%clk 00:41:08]} {[%emt 00:00:54]} Nxe3 {[%clk 00:38:33]} {[%emt 00:02:29]} 14.
fxe3 {[%clk 00:41:28]} {[%emt 00:00:11]} Be7 {[%clk 00:38:40]} {[%emt
00:00:22]} 15. O-O {[%clk 00:39:32]} {[%emt 00:02:25]} f6 {[%clk 00:34:35]}
{[%emt 00:04:35]} 16. exf6 {[%clk 00:39:15]} {[%emt 00:00:49]} gxf6 {[%clk
00:34:55]} {[%emt 00:00:09]} 17. Nh3 {[%clk 00:39:26]} {[%emt 00:00:19]} Qd6
{[%clk 00:34:07]} {[%emt 00:01:19]} 18. Nf4 {[%clk 00:36:28]} {[%emt 00:03:27]}
e5 {[%clk 00:33:59]} {[%emt 00:00:38]} 19. Ng6 {[%clk 00:33:21]} {[%emt
00:03:37]} Rg8 {[%clk 00:34:14]} {[%emt 00:00:15]} 20. dxe5 {[%clk 00:31:52]}
{[%emt 00:01:59]} fxe5 {[%clk 00:34:31]} {[%emt 00:00:13]} 21. Nxe7 {[%clk
00:32:04]} {[%emt 00:00:18]} Kxe7 {[%clk 00:34:51]} {[%emt 00:00:09]} 22. Ng5
{[%clk 00:32:07]} {[%emt 00:00:27]} Raf8 {[%clk 00:33:50]} {[%emt 00:01:30]} 23.
Qxh5 {[%clk 00:31:59]} {[%emt 00:00:39]} Rh8 {[%clk 00:33:29]} {[%emt
00:00:51]} 24. Rf7+ {[%clk 00:31:28]} {[%emt 00:01:01]} Kd8 {[%clk 00:30:55]}
{[%emt 00:03:04]} 25. Rxf8+ {[%clk 00:31:07]} {[%emt 00:00:52]} Rxf8 {[%clk
00:31:15]} {[%emt 00:00:09]} 26. Nf7+ {[%clk 00:31:18]} {[%emt 00:00:19]} Rxf7
{[%clk 00:30:33]} {[%emt 00:01:12]} 27. Qxf7 {[%clk 00:31:40]} {[%emt
00:00:07]} Nf8 {[%clk 00:29:16]} {[%emt 00:01:47]} 28. Rd1 {[%clk 00:31:45]}
{[%emt 00:00:25]} Qe7 {[%clk 00:24:34]} {[%emt 00:05:12]} 29. Rxd5+ {[%clk
00:28:54]} {[%emt 00:03:23]} Nd7 {[%clk 00:24:49]} {[%emt 00:00:14]} 30. Qxe7+
{[%clk 00:28:52]} {[%emt 00:00:32]} Kxe7 {[%clk 00:25:05]} {[%emt 00:00:09]} 31.
Rxd7+ {[%clk 00:28:47]} {[%emt 00:00:40]} Kxd7 {[%clk 00:25:20]} {[%emt
00:00:15]} 32. Kf2 {[%clk 00:29:10]} {[%emt 00:00:07]} Ke7 {[%clk 00:25:39]}
{[%emt 00:00:12]} 33. Kf3 {[%clk 00:29:31]} {[%emt 00:00:08]} Kf6 {[%clk
00:26:02]} {[%emt 00:00:07]} 34. Ke4 {[%clk 00:29:54]} {[%emt 00:00:07]} b6
{[%clk 00:25:46]} {[%emt 00:00:47]} 35. h5 {[%clk 00:29:58]} {[%emt 00:00:25]}
Kg5 {[%clk 00:25:45]} {[%emt 00:00:31]} 36. g4 {[%clk 00:30:13]} {[%emt
00:00:15]} Kf6 {[%clk 00:26:06]} {[%emt 00:00:09]} 37. h6 {[%clk 00:30:24]}
{[%emt 00:00:19]} Kg6 {[%clk 00:26:15]} {[%emt 00:00:21]} 38. Kxe5 {[%clk
00:29:42]} {[%emt 00:01:12]} Kxh6 {[%clk 00:26:27]} {[%emt 00:00:18]} 39. Kd6
{[%clk 00:29:47]} {[%emt 00:00:25]} c4 {[%clk 00:26:28]} {[%emt 00:00:30]} 40.
Kc6 {[%clk 00:30:08]} {[%emt 00:00:09]} Kg5 {[%clk 00:26:01]} {[%emt 00:00:55]}
41. Kb7 {[%clk 00:29:24]} {[%emt 00:01:15]} Kxg4 {[%clk 00:26:20]} {[%emt
00:00:11]} 42. Kxa7 {[%clk 00:29:48]} {[%emt 00:00:06]} Kf3 {[%clk 00:26:40]}
{[%emt 00:00:10]} 43. Kxb6 {[%clk 00:30:00]} {[%emt 00:00:18]} Kxe3 {[%clk
00:27:02]} {[%emt 00:00:07]} 44. a4 {[%clk 00:30:19]} {[%emt 00:00:06]} Kd2
{[%clk 00:26:36]} {[%emt 00:01:02]} 45. Kc5 {[%clk 00:30:11]} {[%emt 00:00:39]}
Kc2 {[%clk 00:23:51]} {[%emt 00:03:14]} 46. Kxc4 {[%clk 00:30:29]} {[%emt
00:00:12]} Kxb2 {[%clk 00:24:16]} {[%emt 00:00:05]} 47. a5 {[%clk 00:30:52]}
{[%emt 00:00:07]} Kc2 {[%clk 00:24:39]} {[%emt 00:00:07]} 48. a6 {[%clk
00:31:18]} {[%emt 00:00:05]} Kc1 {[%clk 00:25:02]} {[%emt 00:00:07]} 49. a7
{[%clk 00:31:35]} {[%emt 00:00:13]} 1-0

[Event "ONJK DE"]
[Site "Enschede, Netherlands"]
[Date "2022.08.08"]
[Round "1.5"]
[White "Zult, Olav"]
[Black "Verwer, Oscar"]
[Result "0-1"]
[TimeControl "40min + 30sec/move"]
[WhiteElo "918"]
[BlackElo "1361"]

1. d4 {[%clk 00:40:59]} Nf6 {[%clk 00:40:55]} {[%emt 00:00:06]} 2. Nf3 {[%clk
00:41:14]} {[%emt 00:00:15]} g6 {[%clk 00:41:18]} {[%emt 00:00:07]} 3. g3
{[%clk 00:41:37]} {[%emt 00:00:07]} Bg7 {[%clk 00:41:43]} {[%emt 00:00:06]} 4.
Bg2 {[%clk 00:41:52]} {[%emt 00:00:15]} O-O {[%clk 00:42:02]} {[%emt 00:00:11]}
5. O-O {[%clk 00:42:17]} {[%emt 00:00:06]} d5 {[%clk 00:42:24]} {[%emt
00:00:08]} 6. b3 {[%clk 00:42:27]} {[%emt 00:00:20]} c5 {[%clk 00:42:24]}
{[%emt 00:00:29]} 7. c4 {[%emt 00:01:56]} Nc6 {[%clk 00:41:22]} 8. Bb2 {[%clk
00:42:52]} {[%emt 00:00:10]} cxd4 {[%clk 00:41:18]} {[%emt 00:00:33]} 9. Nxd4
{[%clk 00:42:58]} {[%emt 00:00:23]} Nxd4 {[%clk 00:41:25]} {[%emt 00:00:25]} 10.
Bxd4 {[%clk 00:43:23]} {[%emt 00:00:05]} dxc4 {[%clk 00:41:09]} {[%emt
00:00:46]} 11. bxc4 {[%clk 00:43:11]} {[%emt 00:00:42]} Qc7 {[%clk 00:40:46]}
{[%emt 00:00:53]} 12. Qd3 {[%clk 00:41:25]} {[%emt 00:02:15]} Rd8 {[%clk
00:40:19]} {[%emt 00:00:58]} 13. Qc3 {[%clk 00:41:11]} {[%emt 00:00:45]} Bf5
{[%clk 00:39:33]} {[%emt 00:01:15]} 14. Nd2 {[%clk 00:40:56]} {[%emt 00:00:45]}
Rac8 {[%clk 00:39:13]} {[%emt 00:00:49]} 15. Rfe1 {[%clk 00:39:49]} {[%emt
00:01:38]} Qd7 {[%clk 00:38:34]} {[%emt 00:01:08]} 16. e4 {[%clk 00:39:26]}
{[%emt 00:00:54]} Be6 {[%clk 00:36:56]} {[%emt 00:02:08]} 17. e5 {[%clk
00:39:00]} {[%emt 00:00:56]} Ng4 {[%clk 00:36:10]} {[%emt 00:01:15]} 18. Re4
{[%clk 00:38:40]} {[%emt 00:00:48]} Bf5 {[%clk 00:33:55]} {[%emt 00:02:48]} 19.
Rf4 {[%clk 00:38:05]} {[%emt 00:01:05]} Bh6 {[%clk 00:33:41]} {[%emt 00:00:43]}
20. Rf3 {[%clk 00:36:08]} {[%emt 00:02:27]} Qxd4 {[%clk 00:34:03]} {[%emt
00:00:09]} 21. Qxd4 {[%clk 00:36:09]} {[%emt 00:00:28]} Rxd4 {[%clk 00:34:27]}
{[%emt 00:00:06]} 22. Nb3 {[%clk 00:36:04]} {[%emt 00:00:36]} Rdxc4 {[%clk
00:34:35]} {[%emt 00:00:22]} 23. h3 {[%clk 00:36:09]} {[%emt 00:00:24]} Nxe5
{[%clk 00:34:42]} {[%emt 00:00:23]} 24. Rxf5 {[%clk 00:35:44]} {[%emt
00:00:55]} gxf5 {[%clk 00:35:04]} {[%emt 00:00:09]} 25. Bxb7 {[%clk 00:35:44]}
{[%emt 00:00:30]} R8c7 {[%clk 00:35:17]} {[%emt 00:00:17]} 26. Bd5 {[%clk
00:35:54]} {[%emt 00:00:19]} Rc3 {[%clk 00:35:15]} {[%emt 00:00:33]} 27. Re1
{[%clk 00:35:22]} {[%emt 00:01:01]} Nf3+ {[%clk 00:35:29]} {[%emt 00:00:17]} 28.
Bxf3 {[%clk 00:35:24]} {[%emt 00:00:28]} Rxf3 {[%clk 00:35:53]} {[%emt
00:00:05]} 29. Kg2 {[%clk 00:35:26]} {[%emt 00:00:28]} Rfc3 {[%clk 00:36:09]}
{[%emt 00:00:15]} 30. Rd1 {[%clk 00:35:09]} {[%emt 00:00:46]} Rc2 {[%clk
00:36:15]} {[%emt 00:00:24]} 31. a4 {[%clk 00:35:08]} {[%emt 00:00:31]} R7c3
{[%emt 00:03:04]} 32. Nd4 {[%clk 00:34:11]} {[%emt 00:00:50]} Ra2 {[%clk
00:34:09]} {[%emt 00:00:39]} 33. Nb5 {[%clk 00:34:24]} {[%emt 00:00:17]} Rcc2
{[%clk 00:34:17]} {[%emt 00:00:21]} 34. Nd4 {[%clk 00:33:27]} {[%emt 00:01:28]}
Rxf2+ {[%clk 00:34:33]} {[%emt 00:00:14]} 35. Kg1 {[%clk 00:33:41]} {[%emt
00:00:16]} Be3 {[%clk 00:34:20]} {[%emt 00:00:44]} 36. Kh1 {[%clk 00:34:00]}
{[%emt 00:00:11]} Rh2# {[%clk 00:34:43]} {[%emt 00:00:06]} 0-1